bitfinex/quotes_ETHUSD_20241104
["timestamp","ask_amount","ask_price","bid_price","bid_amount"]
[1730750025573,0.08244291,2431.4,2431.3,13.03604373]
[1730750025785,0.08244291,2431.4,2431.3,13.34409724]
[1730750027362,0.08244291,2431.4,2431.3,13.34352959]
[1730750028895,0.08244291,2431.4,2431.3,13.0355158]
[1730750029110,0.2225,2432.2,2431.8,4.11215]
[1730750029276,0.2225,2432.2,2432.0,1.53689646]
[1730750029478,0.2225,2432.2,2432.1,0.16224992]
[1730750030565,0.2225,2432.2,2432.1,0.42202231]
[1730750031208,0.2225,2432.2,2432.1,0.16224992]
[1730750036282,0.2225,2432.2,2432.1,0.16222471]
[1730750036525,0.2225,2432.2,2432.0,1.53689646]
[1730750036820,0.2225,2432.2,2432.1,0.16221877]
[1730750038604,4.334,2432.2,2432.1,0.16221877]
[1730750039421,0.2225,2432.2,2432.1,0.16221877]
[1730750039990,0.2225,2432.2,2432.1,0.16221021]
[1730750040836,4.334,2432.2,2432.1,0.16221021]
[1730750041121,0.2225,2432.2,2432.1,0.16221021]
[1730750042435,0.2225,2432.2,2432.1,0.16223999]
[1730750046246,0.2225,2432.2,2432.0,1.53689646]
[1730750046731,0.2225,2432.2,2432.1,0.16228185]
[1730750047309,4.334,2432.2,2432.1,0.16228185]
[1730750049535,4.334,2432.2,2432.1,0.42206462]
[1730750050052,4.334,2432.2,2432.1,0.42212789]
[1730750054045,4.334,2432.2,2432.1,0.16243282]
[1730750054605,0.2225,2432.4,2432.1,0.42241961]
[1730750054954,0.2225,2432.4,2432.0,1.53689646]
[1730750054955,4.11135,2432.3,2432.2,0.42241961]
[1730750056133,4.33369,2432.4,2432.2,0.42241961]
[1730750056444,4.33369,2432.4,2432.3,0.42245266]
[1730750056649,4.33369,2432.4,2432.3,1.95934912]
[1730750057146,4.33369,2432.4,2432.3,1.69932928]
[1730750057924,4.11119,2432.4,2432.3,1.53689646]
[1730750058143,4.11119,2432.4,2432.3,1.69941331]
[1730750058346,4.11119,2432.4,2432.3,1.95951092]
[1730750060443,1.94664355,2432.6,2432.3,1.95951092]
[1730750060645,6.05754355,2432.6,2432.5,1.53689646]
[1730750060835,4.3334,2432.6,2432.5,1.69941331]
[1730750061321,4.3334,2432.6,2432.5,1.69941095]
[1730750062109,6.05710355,2432.9,2432.5,3.49630063]
[1730750062435,6.05710355,2432.9,2432.8,1.53689646]
[1730750062436,4.33296,2432.9,2432.8,1.53689646]
[1730750062747,4.11124,2432.4,2432.2,1.53689646]
[1730750062949,4.11124,2432.4,2432.3,0.42228682]
[1730750062950,4.33374,2432.4,2432.3,0.42228682]
[1730750063113,4.33374,2432.4,2432.3,0.16240772]
[1730750063314,4.33374,2432.4,2431.8,2.02970956]
[1730750063315,4.1116,2432.2,2432.0,1.53689646]
[1730750063632,4.1116,2432.2,2432.1,0.16243141]
[1730750063840,4.1116,2432.2,2432.1,0.42233934]
[1730750064237,4.1116,2432.2,2432.1,0.7304057]
[1730750068853,4.1116,2432.2,2432.0,1.53689646]
[1730750069054,4.1116,2432.2,2432.1,0.47067132]
[1730750069369,4.1116,2432.2,2432.1,0.16243188]
[1730750069739,4.11136,2432.3,2432.1,0.16243188]
[1730750069941,4.11136,2432.3,2432.2,0.16243188]
[1730750070862,4.11136,2432.3,2432.2,0.42234957]
[1730750071071,4.11136,2432.3,2432.2,0.16243188]
[1730750072080,5.12827636,2432.3,2432.2,0.42235004]
[1730750072450,5.12827636,2432.3,2432.2,0.16243188]
[1730750072644,4.11166,2432.2,2432.0,1.53689646]
[1730750073383,4.11166,2432.2,2432.1,0.47078324]
[1730750073583,4.11166,2432.2,2432.1,0.73068856]
[1730750073884,4.11166,2432.2,2432.1,0.42232942]
[1730750074387,4.11166,2432.2,2432.1,0.73070794]
[1730750074751,4.11166,2432.2,2432.1,0.73072883]
[1730750075357,4.11166,2432.2,2432.1,0.42232942]
[1730750076117,4.11166,2432.2,2432.1,0.16242015]
[1730750076480,4.11166,2432.2,2432.1,0.42229767]
[1730750077908,4.11166,2432.2,2432.1,0.16242015]
[1730750078114,4.11166,2432.2,2432.1,0.42229229]
[1730750079089,4.11166,2432.2,2432.1,0.16242015]
[1730750080093,4.11166,2432.2,2432.1,0.42226986]
[1730750080294,4.11166,2432.2,2432.1,0.16242015]
[1730750080490,4.11184,2432.0,2431.9,0.49338332]
[1730750080696,4.11184,2432.0,2431.9,1.22402958]
[1730750080892,4.11184,2432.0,2431.9,0.47078393]
[1730750081093,6.05835355,2432.1,2431.4,2.59174146]
[1730750081094,4.1124,2431.7,2431.4,2.59174146]
[1730750081328,4.1124,2431.7,2431.6,0.49345384]
[1730750081489,4.1124,2431.7,2431.6,0.42220966]
[1730750081893,4.1124,2431.7,2431.6,0.73061434]
[1730750082137,4.957112,2431.7,2431.6,0.73061434]
[1730750082635,4.957112,2431.7,2431.6,0.42220966]
[1730750082830,4.1124,2431.7,2431.6,0.73063647]
[1730750083223,4.33472,2431.8,2431.6,0.73063647]
[1730750083396,5.83612355,2432.0,2431.7,0.73060611]
[1730750083397,4.11201,2431.9,2431.7,0.73060611]
[1730750083617,4.11201,2431.9,2431.8,0.16237804]
[1730750085049,4.11201,2431.9,2431.6,0.7901]
[1730750085245,4.11201,2431.9,2431.7,0.42222329]
[1730750085446,4.11201,2431.9,2431.8,0.16238106]
[1730750088767,4.11218,2431.8,2431.6,0.7901]
[1730750089263,4.11218,2431.8,2431.7,0.1636945]
[1730750092057,4.11218,2431.8,2431.7,1.70059096]
[1730750092706,4.11218,2431.8,2431.7,1.53689646]
[1730750092871,4.11218,2431.8,2431.7,1.70059288]
[1730750093668,5.62447598,2432.0,2431.7,1.70059288]
[1730750093669,4.11207,2431.9,2431.7,1.70059288]
[1730750093852,4.11207,2431.9,2431.8,0.16369642]
[1730750095795,4.28441964,2431.9,2431.8,0.16369642]
[1730750100338,4.50691964,2431.9,2431.8,0.16369642]
[1730750100543,5.4978122,2431.9,2431.8,0.16369642]
[1730750101232,0.2225,2431.6,2431.1,5.58082086]
[1730750101433,4.11304,2431.3,2431.2,0.42602923]
[1730750101808,4.11279,2431.5,2431.2,0.42602923]
[1730750102008,8.22561,2431.5,2431.3,0.42602923]
[1730750102202,8.22561,2431.5,2431.4,0.42602923]
[1730750102620,4.11285,2431.4,2431.3,1.53689646]
[1730750102816,4.11285,2431.4,2431.3,0.4259287]
[1730750103055,4.546385,2431.4,2431.3,0.4259287]
[1730750103369,4.768885,2431.4,2431.3,0.16380851]
[1730750103687,4.11353,2431.0,2430.9,0.8621972]
[1730750103831,4.11353,2431.0,2430.9,1.28804257]
[1730750104532,4.11353,2431.0,2430.9,1.28793396]
[1730750104715,4.11353,2431.0,2430.9,1.02597366]
[1730750105963,4.33603,2431.0,2430.9,1.02597366]
[1730750107244,4.33603,2431.0,2430.9,0.8621972]
[1730750107644,4.11353,2431.0,2430.9,0.8621972]
[1730750107833,4.11344,2431.1,2430.9,0.8621972]
[1730750108219,4.11344,2431.1,2430.9,2.39909366]
[1730750108420,4.11353,2431.0,2430.9,2.39909366]
[1730750108719,4.11353,2431.0,2430.9,0.8621972]
[1730750111162,4.11344,2431.1,2430.9,0.8621972]
[1730750111663,8.22692,2431.1,2430.9,0.8621972]
[1730750112762,4.11344,2431.1,2431.0,0.7563]
[1730750114483,4.11344,2431.1,2430.9,0.8621972]
[1730750114844,8.22651,2431.2,2430.9,2.39909366]
[1730750115447,4.11337,2431.1,2430.9,2.39909366]
[1730750115753,4.11337,2431.1,2431.0,0.16428076]
[1730750115962,4.11337,2431.1,2430.9,2.39909366]
[1730750116563,4.11286,2431.4,2431.0,0.8172]
[1730750116795,4.11278,2431.5,2431.3,1.53689646]
[1730750117012,4.11257,2431.6,2431.4,0.8172]
[1730750117215,4.33476,2431.8,2431.5,1.53689646]
[1730750117516,4.11243,2431.7,2431.4,0.8172]
[1730750117858,4.11226,2431.8,2431.4,4.93004]
[1730750118998,4.11238,2431.7,2431.4,0.8172]
[1730750119296,4.11252,2431.6,2431.4,0.8172]
[1730750119610,4.11294,2431.4,2431.2,0.7551]
[1730750119771,0.2225,2431.7,2430.9,1.79985578]
[1730750119772,0.2225,2431.5,2430.9,1.79985578]
[1730750119975,0.2225,2431.5,2430.8,0.7735]
[1730750119976,4.1137,2430.9,2430.8,0.26295932]
[1730750120175,4.1137,2430.9,2430.8,0.16431219]
[1730750120762,4.1137,2430.9,2430.6,0.7735]
[1730750120961,4.1137,2430.9,2430.7,0.16431287]
[1730750121323,4.1137,2430.9,2430.8,0.16431287]
[1730750121482,4.11356,2431.0,2430.8,0.16431287]
[1730750121682,4.11356,2431.0,2430.7,0.26292702]
[1730750121882,4.11356,2431.0,2430.8,0.16431364]
[1730750122113,4.1137,2430.9,2430.6,1.03642702]
[1730750122321,4.1137,2430.9,2430.7,0.42725525]
[1730750122516,4.1137,2430.9,2430.8,0.16432823]
[1730750123522,8.2272,2431.0,2430.8,0.16432823]
[1730750123685,8.2272,2431.0,2430.6,1.03642702]
[1730750123886,4.11356,2431.0,2430.7,0.16435199]
[1730750124110,4.11356,2431.0,2430.8,0.16435199]
[1730750124329,4.11356,2431.0,2430.6,1.03642702]
[1730750124496,4.11356,2431.0,2430.7,0.1643788]
[1730750124698,4.11356,2431.0,2430.8,0.1643788]
[1730750124895,8.22721,2431.0,2430.6,0.7735]
[1730750125099,4.11356,2431.0,2430.6,4.88771]
[1730750125282,4.11356,2431.0,2430.7,0.16440324]
[1730750125620,4.11356,2431.0,2430.8,0.16440324]
[1730750125779,4.11356,2431.0,2430.9,0.16440324]
[1730750125980,4.11356,2431.0,2430.7,0.26307162]
[1730750126200,4.11356,2431.0,2430.8,0.16441017]
[1730750126525,4.11356,2431.0,2430.9,0.16441017]
[1730750130056,4.75729747,2431.2,2430.9,0.16441017]
[1730750130261,0.64400747,2431.2,2431.0,0.16441017]
[1730750130430,0.64400747,2431.2,2431.1,0.92061017]
[1730750130632,5.6207188,2431.6,2431.1,1.18401283]
[1730750130633,4.11288,2431.4,2431.1,1.18401283]
[1730750130835,4.11304,2431.3,2431.2,0.16441017]
[1730750131061,4.935632,2431.3,2431.2,0.16441017]
[1730750131578,4.11304,2431.3,2431.2,0.16441017]
[1730750132464,4.1132,2431.2,2430.9,0.26355695]
[1730750132679,4.1132,2431.2,2431.0,0.26355695]
[1730750132850,4.1132,2431.2,2431.1,0.16470067]
[1730750133487,4.11313,2431.3,2431.1,0.16470067]
[1730750133693,4.11313,2431.3,2431.2,0.16470067]
[1730750135293,4.11289,2431.4,2431.2,0.16470067]
[1730750135476,4.11289,2431.4,2431.3,0.16470067]
[1730750135679,9.7333788,2431.6,2431.3,0.16470067]
[1730750135851,4.11268,2431.5,2431.1,4.91977]
[1730750136258,5.3982088,2431.6,2431.2,0.4282827]
[1730750136481,4.11269,2431.5,2431.3,0.16471159]
[1730750136696,4.11269,2431.5,2431.1,4.91977]
[1730750136993,4.11286,2431.4,2431.2,0.16471193]
[1730750137196,4.11286,2431.4,2431.3,0.16471193]
[1730750139904,4.11286,2431.4,2431.3,0.16470657]
[1730750140706,5.3982988,2431.5,2431.3,0.16470657]
[1730750141000,5.3982988,2431.5,2431.4,0.16470375]
[1730750141001,4.11275,2431.5,2431.4,0.16470375]
[1730750141493,4.11275,2431.5,2431.1,4.9198]
[1730750141695,4.11275,2431.5,2431.2,0.42824445]
[1730750141897,4.11275,2431.5,2431.3,0.16469922]
[1730750142206,4.11275,2431.5,2431.4,0.16470077]
[1730750142561,5.3982988,2431.5,2431.4,0.16470077]
[1730750144261,9.5111488,2431.5,2431.1,0.8065]
[1730750144593,1.2855488,2431.4,2431.2,0.42821625]
[1730750144785,1.2855488,2431.4,2431.3,0.16468837]
[1730750145496,8.22552,2431.5,2431.3,0.16468837]
[1730750145497,5.3982988,2431.5,2431.3,0.16468837]
[1730750145697,5.3982988,2431.5,2431.2,0.26352325]
[1730750145698,5.3982988,2431.5,2431.4,0.16468837]
[1730750146961,1.2855488,2431.5,2431.4,0.16468837]
[1730750147168,1.2855488,2431.5,2431.4,0.92918837]
[1730750147466,1.2855488,2431.6,2431.4,0.92918837]
[1730750147694,1.2855488,2431.6,2431.5,0.16468179]
[1730750148036,1.2855488,2431.8,2431.5,5.39909493]
[1730750148191,1.2855488,2431.8,2431.6,0.16468179]
[1730750148394,1.2855488,2431.8,2431.7,0.16468179]
[1730750149103,5.56990844,2431.9,2431.7,0.16468179]
[1730750149303,5.56990844,2431.9,2431.5,4.66268]
[1730750149637,5.56990844,2431.9,2431.6,0.1646124]
[1730750149937,5.56990844,2431.9,2431.7,0.1646124]
[1730750150136,5.56990844,2431.9,2431.5,8.77522]
[1730750150294,5.56990844,2431.9,2431.6,0.16461093]
[1730750150651,1.45789844,2431.9,2431.7,5.06389173]
[1730750150930,1.45789844,2431.9,2431.7,0.787]
[1730750151228,0.17234964,2431.9,2431.7,0.787]
[1730750152088,4.28440964,2431.9,2431.7,0.787]
[1730750152721,0.17234964,2431.9,2431.7,0.787]
[1730750153438,4.28435964,2431.9,2431.7,0.787]
[1730750157535,8.39646964,2431.9,2431.5,4.94048]
[1730750157751,8.39646964,2431.9,2431.6,0.16448727]
[1730750158035,8.39646964,2431.9,2431.5,4.94048]
[1730750158200,8.39646964,2431.9,2431.6,0.16448675]
[1730750158537,4.28435964,2431.9,2431.5,4.94048]
[1730750158693,4.28435964,2431.9,2431.6,0.164497]
[1730750158898,4.28435964,2431.9,2431.5,4.94048]
[1730750159140,4.11234,2431.7,2431.6,0.16449747]
[1730750159320,4.11234,2431.7,2431.3,0.26322239]
[1730750159321,4.11283,2431.5,2431.3,0.26322239]
[1730750159495,4.11285,2431.4,2431.3,0.2632814]
[1730750159702,4.11285,2431.4,2431.3,0.42781786]
[1730750159902,4.11275,2431.5,2431.3,0.42781786]
[1730750160120,4.11275,2431.5,2431.4,0.16454272]
[1730750160323,4.33496,2431.7,2431.4,0.16454272]
[1730750160513,4.11246,2431.7,2431.5,0.16455665]
[1730750160849,4.11229,2431.8,2431.2,4.94109]
[1730750161011,4.11243,2431.7,2431.3,4.54088625]
[1730750161359,4.11243,2431.7,2431.4,0.16455762]
[1730750161644,4.11243,2431.7,2431.5,0.16455762]
[1730750161851,4.11258,2431.6,2431.2,0.8279]
[1730750162054,4.1127,2431.5,2431.3,0.42792223]
[1730750162257,4.1127,2431.5,2431.4,0.1645753]
[1730750162415,4.33508,2431.6,2431.4,0.1645753]
[1730750162754,4.33508,2431.6,2431.5,0.16458658]
[1730750163750,4.33508,2431.6,2431.2,4.94101]
[1730750163950,4.33508,2431.6,2431.3,0.42800222]
[1730750164255,4.11268,2431.5,2431.4,0.16460537]
[1730750167641,4.11299,2431.4,2431.2,0.8279]
[1730750167946,4.11299,2431.4,2431.3,0.16530798]
[1730750168615,4.11276,2431.5,2431.3,0.16530798]
[1730750168816,4.11276,2431.5,2431.4,0.16530798]
[1730750170622,4.11254,2431.6,2431.4,0.42984149]
[1730750170827,4.11254,2431.6,2431.5,0.16530798]
[1730750174447,7.36291599,2431.8,2431.5,0.16530798]
[1730750174783,4.11242,2431.7,2431.4,0.8228]
[1730750174947,4.11242,2431.7,2431.5,0.16536549]
[1730750175289,4.11242,2431.7,2431.4,0.8228]
[1730750175290,4.11242,2431.7,2431.6,0.16535688]
[1730750175647,7.36295599,2431.8,2431.6,0.16535688]
[1730750175843,7.36295599,2431.8,2431.4,4.93564]
[1730750176077,5.82628507,2431.8,2431.5,0.16537123]
[1730750176281,1.71406507,2431.8,2431.6,0.16537123]
[1730750176588,1.71406507,2431.8,2431.5,4.11261]
[1730750176589,1.88641471,2431.9,2431.7,0.16538918]
[1730750176790,1.88641471,2431.9,2431.5,0.7744]
[1730750176971,1.88641471,2431.9,2431.6,0.16538826]
[1730750177173,5.99853471,2431.9,2431.7,0.16538826]
[1730750177477,5.99853471,2431.9,2431.5,4.88701]
[1730750177793,0.17234964,2431.9,2431.7,4.88673]
[1730750177954,0.17234964,2431.9,2431.8,0.16539009]
[1730750178791,0.17234964,2431.9,2431.8,5.05197009]
[1730750179086,0.17234964,2431.9,2431.8,5.39883984]
[1730750179497,0.17234964,2431.9,2431.8,7.48551076]
[1730750179656,0.17234964,2431.9,2431.8,7.793561]
[1730750179981,0.17234964,2431.9,2431.8,7.71132419]
[1730750180142,0.17234964,2431.9,2431.8,7.71120421]
[1730750180350,0.17234964,2431.9,2431.8,7.79343378]
[1730750180550,0.17234964,2431.9,2431.8,7.71120421]
[1730750180848,0.17234964,2431.9,2431.8,7.79343397]
[1730750181047,0.17234964,2431.9,2431.8,7.71120421]
[1730750181284,0.17234964,2431.9,2431.8,7.3635309]
[1730750181485,0.17234964,2431.9,2431.8,9.51274008]
[1730750181690,0.17234964,2431.9,2431.8,9.73842168]
[1730750184950,0.17234964,2431.9,2431.8,9.73794196]
[1730750185865,0.34451518,2431.9,2431.8,9.73794196]
[1730750187463,0.34451518,2431.9,2431.8,6.17367197]
[1730750188375,0.34451518,2431.9,2431.8,5.86590677]
[1730750188697,0.34451518,2431.9,2431.8,6.17358427]
[1730750189094,0.34451518,2431.9,2431.8,6.1735841]
[1730750189296,0.34451518,2431.9,2431.8,5.86590677]
[1730750189604,0.34451518,2431.9,2431.8,1.20372677]
[1730750189920,4.45652518,2431.9,2431.8,0.16511555]
[1730750190065,5.3356257,2431.9,2431.8,0.16511555]
[1730750191105,0.34451518,2431.9,2431.8,0.16511555]
[1730750192819,0.34451518,2431.9,2431.7,0.55]
[1730750194512,4.45652518,2431.9,2431.8,0.16501067]
[1730750194716,4.45652518,2431.9,2431.6,0.26403214]
[1730750194916,4.11219,2431.8,2431.7,0.16500928]
[1730750195135,4.55784252,2431.8,2431.5,4.04973214]
[1730750195289,4.11219,2431.8,2431.6,0.16500102]
[1730750195490,4.11219,2431.8,2431.7,0.16500102]
[1730750196646,4.11219,2431.8,2431.5,1.04973214]
[1730750196945,4.11219,2431.8,2431.6,0.16612394]
[1730750197124,4.11219,2431.8,2431.5,1.04973214]
[1730750197322,4.11219,2431.8,2431.6,0.16613561]
[1730750197654,4.11219,2431.8,2431.7,0.16613561]
[1730750198008,4.11219,2431.8,2431.4,4.11278]
[1730750198009,5.19154752,2431.8,2431.4,4.37865043]
[1730750198245,4.33469,2431.8,2431.5,0.16615103]
[1730750198445,4.11244,2431.7,2431.6,0.16615103]
[1730750198752,0.2225,2431.8,2431.6,0.16615103]
[1730750198753,4.3347,2431.8,2431.6,0.16615103]
[1730750198923,0.34451518,2431.9,2431.5,1.3548]
[1730750199121,4.45661518,2431.9,2431.6,0.16617178]
[1730750199348,4.45661518,2431.9,2431.5,9.58002]
[1730750199648,4.45661518,2431.9,2431.6,0.16618813]
[1730750199811,4.45661518,2431.9,2431.5,5.46739]
[1730750200012,4.45661518,2431.9,2431.6,0.16618865]
[1730750200230,4.45661518,2431.9,2431.7,0.16618865]
[1730750200511,4.45661518,2431.9,2431.5,5.46739]
[1730750200714,4.45661518,2431.9,2431.6,0.16620546]
[1730750200918,4.45661518,2431.9,2431.7,0.16620546]
[1730750201150,0.34451518,2431.9,2431.6,4.1125]
[1730750201453,0.34451518,2431.9,2431.7,4.27857074]
[1730750201605,0.34451518,2431.9,2431.6,4.11251]
[1730750201946,0.34451518,2431.9,2431.7,0.16622759]
[1730750202121,4.45657518,2431.9,2431.6,0.2660112]
[1730750202459,4.45657518,2431.9,2431.5,5.46738]
[1730750202460,4.11218,2431.8,2431.7,0.1662613]
[1730750202634,4.45666518,2431.9,2431.5,5.46738]
[1730750202835,4.45666518,2431.9,2431.6,0.16625639]
[1730750203154,0.34451518,2431.9,2431.7,0.16625639]
[1730750203311,0.34451518,2431.9,2431.6,0.26606446]
[1730750203506,0.34451518,2431.9,2431.7,0.16627139]
[1730750203823,0.34451518,2431.9,2431.8,0.16627139]
[1730750204251,0.34451518,2431.9,2431.6,4.11251]
[1730750204432,0.34451518,2431.9,2431.7,0.16631344]
[1730750204786,0.34451518,2431.9,2431.6,4.11251]
[1730750204929,0.34451518,2431.9,2431.7,0.1663116]
[1730750205261,0.34451518,2431.9,2431.6,4.11251]
[1730750205461,0.34451518,2431.9,2431.7,0.16634142]
[1730750205631,0.34451518,2431.9,2431.8,0.16634142]
[1730750206027,4.45652518,2431.9,2431.8,0.16634142]
[1730750206266,4.45652518,2431.9,2431.8,0.16633208]
[1730750210092,4.45652518,2431.9,2431.8,0.16636371]
[1730750210287,5.3356137,2431.9,2431.8,0.16636371]
[1730750212297,5.5581137,2431.9,2431.4,4.11284]
[1730750212599,5.5581137,2431.9,2431.5,0.43268928]
[1730750212600,4.11224,2431.8,2431.5,0.43268928]
[1730750212756,4.11224,2431.8,2431.6,0.16640703]
[1730750212953,4.11224,2431.8,2431.4,4.87814]
[1730750213158,4.11224,2431.8,2431.5,0.43266839]
[1730750213159,4.11235,2431.7,2431.5,0.43266839]
[1730750213381,4.11219,2431.8,2431.4,4.878]
[1730750213689,4.11219,2431.8,2431.5,0.43268266]
[1730750213900,4.11219,2431.8,2431.6,0.16640959]
[1730750214197,4.11219,2431.8,2431.7,0.16640959]
[1730750216299,0.34451518,2431.9,2431.7,0.16640959]
[1730750216602,0.34451518,2431.9,2431.8,0.16640959]
[1730750218485,4.45652518,2431.9,2431.8,0.16640959]
[1730750220662,4.45652518,2431.9,2431.7,0.8094]
[1730750220862,4.45652518,2431.9,2431.8,0.1665795]
[1730750221561,0.34451518,2431.9,2431.8,6.36466148]
[1730750221757,0.34451518,2431.9,2431.8,6.93931941]
[1730750222080,0.34451518,2431.9,2431.8,2.82713941]
[1730750222282,0.34451518,2431.9,2431.8,1.29127053]
[1730750223315,0.34451518,2431.9,2431.8,5.40345053]
[1730750223528,0.34451518,2431.9,2431.8,4.66218]
[1730750223724,0.34451518,2431.9,2431.8,5.09522394]
[1730750224035,0.34451518,2431.9,2431.8,6.21666134]
[1730750224238,0.34451518,2431.9,2431.8,13.05910788]
[1730750224375,0.34451518,2431.9,2431.8,12.78143645]
[1730750224719,0.34451518,2431.9,2431.8,11.5232059]
[1730750224880,0.34451518,2431.9,2431.8,2.59745249]
[1730750225225,4.45652518,2431.9,2431.8,0.43304394]
[1730750225431,5.5358717,2431.9,2431.8,0.16654525]
[1730750225592,4.1126,2431.6,2431.4,0.26637437]
[1730750225905,4.3351,2431.6,2431.5,0.16646248]
[1730750226417,4.3351,2431.6,2431.3,0.86270113]
[1730750226629,4.1127,2431.5,2431.4,0.16647235]
[1730750227415,0.2225,2431.6,2431.4,0.16648047]
[1730750227711,4.11237,2431.7,2431.5,0.16648047]
[1730750227916,4.1126,2431.6,2431.3,0.30810773]
[1730750228095,4.1126,2431.6,2431.4,0.43277007]
[1730750228417,4.1126,2431.6,2431.5,0.16643992]
[1730750229115,8.2248,2431.7,2431.5,0.16643992]
[1730750229306,8.2248,2431.7,2431.2,4.11311]
[1730750229504,8.2248,2431.7,2431.3,0.43269314]
[1730750229707,4.11253,2431.6,2431.4,0.16641034]
[1730750229893,4.11268,2431.5,2431.2,0.55]
[1730750230103,4.11268,2431.5,2431.3,0.16641911]
[1730750230104,4.11285,2431.4,2431.3,0.16641911]
[1730750230425,4.11336,2431.1,2431.0,0.26629639]
[1730750230627,4.11364,2431.0,2430.9,0.26622421]
[1730750230807,4.11364,2431.0,2430.9,0.16638193]
[1730750230991,4.33614,2431.0,2430.9,0.16638193]
[1730750231530,4.1137,2430.9,2430.8,0.86270113]
[1730750233631,0.2225,2431.4,2430.8,0.86270113]
[1730750233826,4.11337,2431.1,2430.8,0.86270113]
[1730750235021,4.1132,2431.2,2430.8,0.86270113]
[1730750235437,4.11313,2431.3,2430.8,0.86270113]
[1730750235438,4.11313,2431.3,2430.9,0.7959]
[1730750235642,8.2263,2431.3,2430.9,0.7959]
[1730750235936,4.11313,2431.3,2430.9,0.96194109]
[1730750236102,8.22625,2431.3,2430.9,0.96194464]
[1730750236303,8.22625,2431.3,2430.9,0.7959]
[1730750237139,4.11319,2431.2,2430.9,0.7959]
[1730750238401,4.11305,2431.3,2430.9,0.87816969]
[1730750238843,4.11305,2431.3,2430.9,0.7959]
[1730750239336,4.11321,2431.2,2430.9,0.7959]
[1730750240308,4.11338,2431.1,2430.8,0.55]
[1730750240732,4.11337,2431.1,2430.8,0.55]
[1730750241949,4.11379,2430.9,2430.7,0.817]
[1730750242259,4.11404,2430.7,2430.4,0.7754]
[1730750242734,4.11404,2430.7,2430.4,0.94141231]
[1730750243249,4.11379,2430.9,2430.4,0.94141231]
[1730750243434,8.22765,2430.9,2430.4,5.05595231]
[1730750243750,4.11389,2430.8,2430.4,5.05595231]
[1730750246063,4.11379,2430.9,2430.5,4.11435]
[1730750246262,4.33581,2431.2,2430.7,4.94285]
[1730750246425,4.11331,2431.2,2430.7,4.94285]
[1730750247622,4.97956572,2431.3,2430.7,4.94285]
[1730750247832,4.11336,2431.1,2430.7,4.94285]
[1730750250226,4.11336,2431.1,2430.7,9.0568]
[1730750250425,4.11336,2431.1,2430.7,4.94285]
[1730750250622,4.11326,2431.2,2430.7,9.05678]
[1730750250826,4.11326,2431.2,2430.7,4.94283]
[1730750251267,4.11338,2431.1,2430.7,4.94283]
[1730750251928,4.11353,2431.0,2430.7,0.8289]
[1730750252575,4.11338,2431.1,2430.7,4.94293]
[1730750253158,4.11338,2431.1,2430.7,0.8289]
[1730750253784,4.11356,2431.0,2430.7,0.8289]
[1730750254099,0.86644572,2431.3,2430.7,0.8289]
[1730750254100,4.11371,2430.9,2430.7,0.8289]
[1730750254572,4.1136,2431.0,2430.7,0.8289]
[1730750254781,4.1136,2431.0,2430.8,0.16624768]
[1730750254982,4.11339,2431.1,2430.7,0.8289]
[1730750255340,4.11339,2431.1,2430.8,0.16625438]
[1730750255568,4.11362,2431.0,2430.7,0.8289]
[1730750255736,4.11362,2431.0,2430.8,0.16635999]
[1730750256061,4.11362,2431.0,2430.7,0.8289]
[1730750256268,4.11362,2431.0,2430.8,0.16636575]
[1730750256468,4.11362,2431.0,2430.7,0.8289]
[1730750256667,4.11362,2431.0,2430.8,0.16640799]
[1730750256875,4.11362,2431.0,2430.7,1.09517889]
[1730750257178,4.11362,2431.0,2430.8,0.16640444]
[1730750257475,4.11362,2431.0,2430.9,0.16643965]
[1730750260411,4.11362,2431.0,2430.7,0.8289]
[1730750260616,8.22683,2431.1,2430.8,0.43320394]
[1730750260775,4.11336,2431.1,2430.9,0.16661153]
[1730750260981,4.11336,2431.1,2431.0,0.16661153]
[1730750261183,4.11336,2431.1,2430.7,4.94286]
[1730750261379,4.75713572,2431.3,2431.0,0.8198]
[1730750261588,4.11319,2431.3,2431.0,0.90206441]
[1730750261804,4.11294,2431.4,2431.0,5.01558441]
[1730750262120,4.11279,2431.5,2431.2,0.8198]
[1730750262412,4.11279,2431.5,2431.2,0.90205535]
[1730750262776,4.11279,2431.5,2431.2,0.8198]
[1730750263422,4.11251,2431.7,2431.2,0.8198]
[1730750263724,2.36313194,2431.8,2431.4,0.7742]
[1730750263883,4.11231,2431.8,2431.4,4.88703]
[1730750264710,4.11235,2431.7,2431.4,0.7742]
[1730750264882,4.11218,2431.8,2431.5,0.55]
[1730750265303,4.11218,2431.8,2431.6,0.16656461]
[1730750265619,4.11235,2431.7,2431.5,0.55]
[1730750265921,4.11235,2431.7,2431.6,0.16642038]
[1730750266240,4.96925452,2431.7,2431.2,1.3502]
[1730750266388,4.11273,2431.5,2431.3,0.16637951]
[1730750266584,4.11273,2431.5,2431.4,0.16637951]
[1730750267894,4.11273,2431.5,2431.4,0.16633643]
[1730750268097,4.11273,2431.5,2431.2,1.3502]
[1730750268294,4.11253,2431.6,2431.3,0.1663332]
[1730750268497,4.11253,2431.6,2431.2,5.54563436]
[1730750268719,4.11253,2431.6,2431.3,0.16631348]
[1730750268881,4.11253,2431.6,2431.2,5.54563436]
[1730750269085,4.11253,2431.6,2431.3,0.1663134]
[1730750269330,4.11253,2431.6,2431.2,5.54563436]
[1730750269491,4.11253,2431.6,2431.3,0.16628122]
[1730750269687,4.11253,2431.6,2431.2,5.46338]
[1730750269911,4.11253,2431.6,2431.3,0.16628084]
[1730750270185,4.11253,2431.6,2431.2,5.46338]
[1730750270410,4.11253,2431.6,2431.3,0.16625346]
[1730750270608,4.11253,2431.6,2431.2,5.5456344]
[1730750270810,4.11253,2431.6,2431.3,0.16625739]
[1730750271012,4.11253,2431.6,2431.2,5.5456344]
[1730750271197,4.11253,2431.6,2431.3,0.1662573]
[1730750271398,4.11218,2431.8,2431.3,4.11292]
[1730750271644,4.11218,2431.8,2431.4,0.16621377]
[1730750271801,4.11218,2431.8,2431.5,0.8283]
[1730750273194,4.45652518,2431.9,2431.5,4.94098]
[1730750275020,0.34451518,2431.9,2431.6,4.11241]
[1730750276105,0.16624786,2431.8,2431.6,4.11241]
[1730750276306,0.16624786,2431.8,2431.7,0.8283]
[1730750277838,0.16624786,2431.8,2431.7,1.3783]